Cogmind - Beta 16 @@@ ROGUE MODE // 2025.12.12 @ 18:48:09 Player: War__Prophet Result: Destroyed by Y-72 Warden with Railgun Performance ------------- Evolutions (7) 3500 Regions Visited (11) 2200 Robots Destroyed (36) 180 Value Destroyed (1128) 1128 Prototype IDs (2) 40 Alien Tech Used (0) 0 Bonus (700) 700 TOTAL SCORE: 7748 Bonus ------- Pacifist 200 Entered DSFs 500 Cogmind --------- Core Integrity 0/1300 Matter 193/300 Energy 665/700 System Corruption 12% Temperature Cool (9) Movement Core (50) Location -3/Research Parts ------- > --- POWER (2) -------- (None) > --- PROPULSION (14) -- (None) > --- UTILITY (3) ------ Experimental Energy Well > --- WEAPON (2) ------- (None) > --- INVENTORY (5) ---- Cryofiber Web Improved Heat Sink Hardcell Cannon Peak State ------------ > --- POWER ------------ Light Ion Engine > --- PROPULSION ------- Xenon Bombardment Thruster Xenon Bombardment Thruster Xenon Bombardment Thruster Xenon Bombardment Thruster Xenon Bombardment Thruster > --- UTILITY ---------- Weight Redist. System Power Shielding Power Shielding > --- WEAPON ----------- Heavy Flail Katana > --- INVENTORY -------- Cryofiber Web Cryofiber Web Heat Sink Improved Heat Sink Medium Matter Pod [Rating: 32] Favorites ----------- Power Light Ion Engine Engine Light Ion Engine Power Core Light Nuclear Core Propulsion Xenon Bombardment Thruster Wheel Wheel Hover Unit Improved Hover Unit Flight Unit Xenon Bombardment Thruster Utility Weight Redist. System Device Weight Redist. System Storage Small Storage Unit Processor Advanced Signal Interpreter Protection Power Shielding Weapon Heavy Flail Energy Gun Medium Laser Energy Cannon Light EM Pulse Cannon Ballistic Gun Assault Rifle Ballistic Cannon Hardcell Cannon Impact Weapon Heavy Flail Slashing Weapon Katana Build | -11 -10 -9 -8 -7 -7 -6 -6 -6 -5 -4 -3 ------- Run | Yrd Mat Mat Mat Fac DSF Fac Low Low Fac Fac Res Slots Evolved 14 | . . 2 2 2 . 2 . . 2 2 2 Power 1 | . . . . 1 . . . . . . . Propulsion 12 | . . 2 2 . . 2 . . 2 2 2 Utility 1 | . . . . 1 . . . . . . . Weapon . | . . . . . . . . . . . . Parts Attached 46 | 5 . 6 9 4 7 . 1 . 7 4 3 Power 5 | . . 1 2 1 . . . . 1 . . Engine 4 | . . 1 2 1 . . . . . . . Core 1 | . . . . . . . . . 1 . . Reactor . | . . . . . . . . . . . . Propulsion 17 | 2 . 2 1 1 6 . . . 3 . 2 Treads . | . . . . . . . . . . . . Leg . | . . . . . . . . . . . . Wheel 2 | 2 . . . . . . . . . . . Hover 2 | . . . . 1 . . . . . . 1 Flight 13 | . . 2 1 . 6 . . . 3 . 1 Utility 14 | 1 . 1 4 2 . . 1 . 2 2 1 Device 7 | . . . 4 . . . 1 . 1 1 . Storage 3 | 1 . 1 . . . . . . . . 1 Processor 2 | . . . . . . . . . 1 1 . Hackware . | . . . . . . . . . . . . Protection 2 | . . . . 2 . . . . . . . Artifact . | . . . . . . . . . . . . Weapon 10 | 2 . 2 2 . 1 . . . 1 2 . Energy Gun 1 | 1 . . . . . . . . . . . Energy Cannon 1 | . . 1 . . . . . . . . . Ballistic Gun 2 | 1 . 1 . . . . . . . . . Ballistic Cannon 2 | . . . . . . . . . 1 1 . Launcher . | . . . . . . . . . . . . Special Weapon . | . . . . . . . . . . . . Impact Weapon 2 | . . . 2 . . . . . . . . Slashing Weapon 2 | . . . . . 1 . . . . 1 . Piercing Weapon . | . . . . . . . . . . . . Special Melee Weapon . | . . . . . . . . . . . . Unidentified Prototypes 2 | . . 1 . . . . . . . . 1 Corrupted Parts 2 | . . . 2 . . . . . . . . System Corruption 16 | . . . 16 . . . . . . . . Parts Lost 32 | . . 5 6 . 4 . 5 . 3 5 4 Power 4 | . . 1 1 . 1 . . . . 1 . Propulsion 16 | . . 2 3 . 3 . 4 . 1 2 1 Utility 5 | . . . 1 . . . . . 1 1 2 Weapon 7 | . . 2 1 . . . 1 . 1 1 1 Highest Loss Streak 6 | . . 5 6 . 3 . 3 . 2 4 2 To Critical Strikes . | . . . . . . . . . . . . Average Backups 3 | 1 3 4 7 4 4 4 1 . 1 3 3 Power . | 1 2 2 2 . . . . . . . . Propulsion . | . . . 1 . . . . . . . . Utility 2 | . 1 1 2 4 4 4 1 . 1 2 2 Weapon . | . . . . . . . . . . 1 1 Tool/Special . | . . . . . . . . . . . . Unused Backups 8 | . 4 . 1 1 . . 2 . . . . Power 1 | . . . 1 . . . . . . . . Propulsion 1 | . . . . 1 . . . . . . . Utility 6 | . 4 . . . . . 2 . . . . Weapon . | . . . . . . . . . . . . Tool/Special . | . . . . . . . . . . . . Average Slot Usage (%) 36 | . 71 52 51 33 59 60 42 26 16 11 11 Engine 2 | . . 5 5 5 4 . . . . . . Wheel 2 | . 28 12 . . . . . . . . . Flight 8 | . . 5 18 . 16 26 11 . 2 1 . Device 6 | . . . 8 7 7 6 17 20 8 3 2 Storage 3 | . 14 11 8 . . . . . . . 3 Processor 1 | . . . . . . . . . . 5 3 Protection 2 | . . . . 6 15 13 2 . . . . Energy Gun 1 | . 14 6 . . . . . . . . . Ballistic Gun 2 | . 14 9 1 . . . . . . . . Impact Weapon 2 | . . . 9 7 7 6 3 . . . . Slashing Weapon 1 | . . . . . 2 6 6 6 2 . . Peak Build Rating 32 | 5 6 9 16 11 32 27 30 11 14 18 27 Average Rating 13 | 3 5 5 11 9 20 27 18 11 7 9 17 On Entrance 11 | . 5 5 7 5 11 27 27 11 11 14 12 Avg Prop Armor Cover (%) 10 | . . . . . 16 13 7 . . . . Naked Turns 23 | . . . . . . . . . 23 . . Heaviest Build 14 | 9 9 14 14 8 10 7 7 4 8 11 12 Greatest Support 36 | 20 20 20 19 13 36 24 24 3 12 8 6 Greatest Overweight (x) 3 | . . 2 1 . . . 1 1 2 3 3 Average Overweight (x) . | . . . . . . . . 1 . . . Largest Inventory Capacity 8 | 8 8 8 8 5 5 5 5 5 5 5 5 Average Capacity 5 | 7 8 8 7 5 5 5 5 5 5 5 5 Most Carried 8 | 2 6 8 8 5 5 4 5 . 3 4 5 Average Carried 3 | 1 3 4 6 4 4 4 1 . 1 3 3 Final Capacity 8 | 8 8 8 5 5 5 5 5 5 5 5 5 Final Carried 8 | 2 2 8 5 5 4 4 . . 3 4 3 Class Distribution -------------------- 88% | Mutant 11% | Sprinter Dominant Class ---------------- Mutant | -10/Materials Mutant | -9/Materials Mutant | -8/Materials Mutant | -7/Factory Mutant | -7/DSF Sprinter | -6/Factory Mutant | -6/Lower Caves Mutant | -6/Lower Caves Mutant | -5/Factory Mutant | -4/Factory Mutant | -3/Research Resources | -11 -10 -9 -8 -7 -7 -6 -6 -6 -5 -4 -3 ----------- Run | Yrd Mat Mat Mat Fac DSF Fac Low Low Fac Fac Res Matter Collected 921 | 250 . 145 170 . 95 . 20 . . 134 107 Remotely . | . . . . . . . . . . . . Salvage Created 1499 | . . 289 513 . 54 207 166 . 43 105 122 Parts 54 | . . 17 21 . 3 2 . . 3 1 7 Haulers Intercepted 1 | . . . 1 . . . . . . . . Recyclers Shooed 6 | . . 4 . . . 1 . . 1 . . Parts Field Recycled . | . . . . . . . . . . . . Retrieved Matter . | . . . . . . . . . . . . Parts Self-Destructed . | . . . . . . . . . . . . Prevented . | . . . . . . . . . . . . Parts Restored . | . . . . . . . . . . . . Kills | -11 -10 -9 -8 -7 -7 -6 -6 -6 -5 -4 -3 ------- Run | Yrd Mat Mat Mat Fac DSF Fac Low Low Fac Fac Res Combat Hostiles Destroyed 24 | . . 5 9 . 1 . 2 . 2 2 3 Melee 8 | . . . 6 . 1 . 1 . . . . Guns 6 | . . 5 1 . . . . . . . . Cannons 7 | . . . . . . . . . 2 2 3 Classes Destroyed 12 | . . 4 2 . 1 2 2 . . . 1 Worker 2 | . . 2 . . . . . . . . . Hauler 1 | . . . 1 . . . . . . . . Recycler 5 | . . 1 3 . . 1 . . . . . Minesweeper 2 | . . . . . . . 2 . . . . Operator 1 | . . . . . . 1 . . . . . Watcher 1 | . . . . . . 1 . . . . . Swarmer 10 | . . 2 4 . . . . . 2 . 2 Grunt 7 | . . . 4 . . . 1 . . 2 . Sentry 4 | . . 3 1 . . . . . . . . Specialist 1 | . . . . . 1 . . . . . . Programmer 1 | . . . . . . . . . . . 1 Behemoth 1 | . . . . . . . 1 . . . . Best Kill Streak 10 | . . 7 10 . 1 3 1 . 2 2 3 Combat Bots Only 5 | . . 5 4 . 1 . 1 . 2 2 3 Max Kills in Single Turn 1 | . . 1 1 . 1 1 1 . 1 1 1 Gunslinging . | . . . . . . . . . . . . Exploded . | . . . . . . . . . . . . Melee 1 | . . . 1 . 1 . 1 . . . . Uniques/NPCs Destroyed . | . . . . . . . . . . . . Combat | -11 -10 -9 -8 -7 -7 -6 -6 -6 -5 -4 -3 -------- Run | Yrd Mat Mat Mat Fac DSF Fac Low Low Fac Fac Res Hostile Shots Fired 588 | . . 92 73 . 74 . 35 . 74 137 103 Missed 231 | . . 35 29 . 31 . 16 . 21 62 37 Hits 357 | . . 57 44 . 43 . 19 . 53 75 66 Projectile 357 | . . 57 44 . 43 . 19 . 53 75 66 AOE 2 | . . . . . . . . . . 2 . Critical Strikes 11 | . . 1 . . 1 . 1 . 2 2 4 Part Disruptions 1 | . . . . . . . . . . . 1 Damage Taken 6290 | . . 707 946 . 608 . 287 . 924 1290 1528 Core 4222 | . . 250 536 . 269 . 146 . 701 1004 1316 Absorbed by Shields 10 | . . . . . 10 . . . . . . Redirected to Shielding 8 | . . . . . 8 . . . . . . Core Remaining (%) 52 | 100 100 37 2 . 61 . . 82 29 12 . Volleys Fired 71 | . . 39 11 . . . . . 7 8 6 Largest 2 | . . 2 2 . . . . . 1 2 1 Hottest 106 | . . 106 76 . . . . . 44 99 55 Shots Fired 88 | . . 51 12 . . . . . 7 12 6 Gun 58 | . . 47 11 . . . . . . . . Cannon 30 | . . 4 1 . . . . . 7 12 6 Launcher . | . . . . . . . . . . . . Special . | . . . . . . . . . . . . Kinetic 71 | . . 35 11 . . . . . 7 12 6 Thermal 12 | . . 12 . . . . . . . . . Explosive . | . . . . . . . . . . . . Electromagnetic 5 | . . 4 1 . . . . . . . . Robot Hit Streak 17 | . . 17 7 . . . . . 2 5 1 Robot Miss Streak 4 | . . 3 1 . . . . . 4 2 2 Penetration Max . | . . . . . . . . . . . . Secondary Targets . | . . . . . . . . . . . . Shots Hit Robots 100 | . . 38 35 . 1 3 7 . 2 9 5 Core Hits 36 | . . 12 7 . . 1 1 . 6 4 5 Critical Kills 2 | . . . 2 . . . . . . . . Critical Parts Destroyed 3 | . . . 2 . . . 1 . . . . Critical Strikes 10 | . . 2 4 . . . 1 . . 2 1 Burn 2 | . . 2 . . . . . . . . . Smash 5 | . . . 4 . . . 1 . . . . Sever 3 | . . . . . . . . . . 2 1 Melee Attacks 58 | . . . 37 . 1 4 9 . . 3 4 Impact 47 | . . . 37 . 1 4 5 . . . . Slashing 11 | . . . . . . . 4 . . 3 4 Piercing . | . . . . . . . . . . . . Sneak Attacks 9 | . . . 5 . 1 1 2 . . . . Combat Hostiles . | . . . . . . . . . . . . Follow-up Attacks 7 | . . . 6 . . . 1 . . . . Damage Inflicted 3348 | . . 535 1542 . 113 224 297 . 154 293 190 Guns 606 | . . 495 111 . . . . . . . . Cannons 514 | . . 36 . . . . . . 112 249 117 Explosions . | . . . . . . . . . . . . Melee 2166 | . . . 1431 . 113 224 297 . . 44 57 Ramming 62 | . . 4 . . . . . . 42 . 16 Kinetic 971 | . . 382 111 . . . . . 112 249 117 Thermal 113 | . . 113 . . . . . . . . . Explosive . | . . . . . . . . . . . . Electromagnetic 36 | . . 36 . . . . . . . . . Impact 1971 | . . . 1431 . 113 224 203 . . . . Slashing 195 | . . . . . . . 94 . . 44 57 Piercing . | . . . . . . . . . . . . Highest Corruption 16 | . . . 16 . . . . . . 1 12 Average Corruption 8 | . . . 15 . . . . . . 1 7 Corruption Purged . | . . . . . . . . . . . . Corruption Blocked . | . . . . . . . . . . . . Effects 11 | . . . 5 . . . . . . 1 5 Message Errors 7 | . . . 4 . . . . . . 1 2 Matter Fused 1 | . . . . . . . . . . . 1 Heat Flow Errors 1 | . . . . . . . . . . . 1 Parts Rejected 1 | . . . 1 . . . . . . . . Misdirections 1 | . . . . . . . . . . . 1 Overload Shots . | . . . . . . . . . . . . Overflow Damage 641 | . . . 334 . 73 128 104 . 2 . . Projectiles 2 | . . . . . . . . . 2 . . Explosions . | . . . . . . . . . . . . Melee 639 | . . . 334 . 73 128 104 . . . . Knockbacks 11 | . . . 4 . . 2 2 . 1 2 . Impact 7 | . . . 3 . . 2 2 . . . . Kinetic 3 | . . . . . . . . . 1 2 . Secondary 1 | . . . 1 . . . . . . . . Self-Inflicted Damage 28 | . . 2 . . . . . . 19 . 7 Shots . | . . . . . . . . . . . . Rammed 18 | . . 1 . . . . . . 13 . 4 Targets Rammed 18 | . . 1 . . . . . . 13 . 4 Kicked . | . . . . . . . . . . . . Crushed . | . . . . . . . . . . . . Highest Temperature 189 | . . 189 . . . . . . . 27 88 Average Temperature 62 | . . 64 . . . . . . . 19 65 Received Heat Transfer 829 | . . 219 135 . 126 . 87 . 48 178 36 Siege Activations . | . . . . . . . . . . . . Martial Activations . | . . . . . . . . . . . . Shielding Activations . | . . . . . . . . . . . . Robots Disrupted . | . . . . . . . . . . . . Combat Hostiles . | . . . . . . . . . . . . Robots Corrupted 9 | . . . 4 . . 2 3 . . . . Combat Hostiles 3 | . . . 2 . . . 1 . . . . Parts Fried 16 | . . . 5 . 2 4 5 . . . . Impact Corruptions 25 | . . . 13 . 1 6 5 . . . . Robots Melted . | . . . . . . . . . . . . Combat Hostiles . | . . . . . . . . . . . . Parts Melted 2 | . . 1 . . . . 1 . . . . Heat Transferred 481 | . . 481 . . . . . . . . . Parts Sabotaged . | . . . . . . . . . . . . Parts Stolen . | . . . . . . . . . . . . Parts Stripped . | . . . . . . . . . . . . Power Chain Reactions . | . . . . . . . . . . . . Alert | -11 -10 -9 -8 -7 -7 -6 -6 -6 -5 -4 -3 ------- Run | Yrd Mat Mat Mat Fac DSF Fac Low Low Fac Fac Res Maximum Alert Level 1 | . . . 1 . . . . . . . . Low Security (%) 97 | 100 100 100 84 100 100 100 . . 100 100 100 Level 1 2 | . . . 15 . . . . . . . . Level 2 . | . . . . . . . . . . . . Level 3 . | . . . . . . . . . . . . Level 4 . | . . . . . . . . . . . . Level 5 . | . . . . . . . . . . . . High Security . | . . . . . . . . . . . . Max Security . | . . . . . . . . . . . . Peak Influence 221 | . . 180 221 58 50 17 . . 97 152 74 Initial 76 | . . . 76 58 30 12 . . . 42 71 Average 48 | . . 37 116 47 37 3 . . 27 60 26 Influence Increases 1210 | . . 295 262 5 35 17 75 . 127 290 104 Destroy 0b10 Robot/C 480 | . . 100 180 . 20 . 40 . 40 40 60 Destroy 0b10 Robot/NC 60 | . . 15 20 . . 15 10 . . . . Destroy Leader 94 | . . 30 32 . . 2 10 . 10 . 10 Successful Hack 5 | . . . . 5 . . . . . . . Disable Machine 30 | . . . . . . . . . 15 15 . Destroy Structure 16 | . . . . . . . . . 2 10 4 Partial Spotted 30 | . . 15 . . . . . . . 15 . Lose Combat Pursuer 495 | . . 135 30 . 15 . 15 . 60 210 30 Influence Decreases 1161 | . . 115 314 90 53 42 75 . 40 240 192 Entered New Map 311 | . . . 104 70 13 13 . . . 45 66 Time Decay 610 | . . 75 150 20 . 29 55 . 30 145 106 Lost Part 240 | . . 40 60 . 40 . 20 . 10 50 20 Squads Dispatched 7 | . . 2 1 . . . . . . 3 1 Investigation 1 | . . . . . . . . . . 1 . Extermination 1 | . . . . . . . . . . . 1 Reinforcement 5 | . . 2 1 . . . . . . 2 . Assault . | . . . . . . . . . . . . Garrison . | . . . . . . . . . . . . Intercept . | . . . . . . . . . . . . Searches Triggered . | . . . . . . . . . . . . Construction Impeded . | . . . . . . . . . . . . Haulers Reinforced . | . . . . . . . . . . . . Active Scanning Responses . | . . . . . . . . . . . . Cargo Convoy Interrupts . | . . . . . . . . . . . . Stealth | -11 -10 -9 -8 -7 -7 -6 -6 -6 -5 -4 -3 --------- Run | Yrd Mat Mat Mat Fac DSF Fac Low Low Fac Fac Res Distress Signals 9 | . . 6 2 . . . . . . 1 . Communications Jammed . | . . . . . . . . . . . . Distress Signals . | . . . . . . . . . . . . Times Spotted 91 | . . 23 16 . 3 3 3 . 9 24 10 Peak Tracking Total 13 | . . 12 6 . 3 3 2 . 5 13 6 Tactical Retreats 16 | . . 4 1 . 1 . 1 . 2 5 2 Traps | -11 -10 -9 -8 -7 -7 -6 -6 -6 -5 -4 -3 ------- Run | Yrd Mat Mat Mat Fac DSF Fac Low Low Fac Fac Res Traps Triggered 1 | . . . . . 1 . . . . . . Indirectly . | . . . . . . . . . . . . Trap Hack Attempts . | . . . . . . . . . . . . Triggered . | . . . . . . . . . . . . Disarmed . | . . . . . . . . . . . . Reprogrammed . | . . . . . . . . . . . . Reused 5 | . . . . . . . 5 . . . . Traps Extracted . | . . . . . . . . . . . . Installed 13 | . . . . . . . 13 . . . . Triggered 5 | . . . . . . . 5 . . . . Most Traps Carried 5 | . . . . . . . 5 . . . . Machines | -11 -10 -9 -8 -7 -7 -6 -6 -6 -5 -4 -3 ---------- Run | Yrd Mat Mat Mat Fac DSF Fac Low Low Fac Fac Res Machines Disabled 2 | . . . . . . . . . 1 1 . Max in Single Turn 1 | . . . . . . . . . 1 1 . Machines Repaired . | . . . . . . . . . . . . Machines Dismantled . | . . . . . . . . . . . . Machines Sabotaged . | . . . . . . . . . . . . Overloaded Fab Kills . | . . . . . . . . . . . . Hacking | -11 -10 -9 -8 -7 -7 -6 -6 -6 -5 -4 -3 --------- Run | Yrd Mat Mat Mat Fac DSF Fac Low Low Fac Fac Res Machines Accessed 2 | . . . . 1 . . . . . 1 . Terminals 2 | . . . . 1 . . . . . 1 . Fabricators . | . . . . . . . . . . . . Repair Stations . | . . . . . . . . . . . . Recycling Units . | . . . . . . . . . . . . Scanalyzers . | . . . . . . . . . . . . Garrison Access . | . . . . . . . . . . . . Total Hacks 5 | . . . . 2 . . . . . 3 . Successful 1 | . . . . 1 . . . . . . . Failed 4 | . . . . 1 . . . . . 3 . Catastrophic . | . . . . . . . . . . . . Database Lockouts . | . . . . . . . . . . . . Manual . | . . . . . . . . . . . . Terminals 5 | . . . . 2 . . . . . 3 . Fabricators . | . . . . . . . . . . . . Repair Stations . | . . . . . . . . . . . . Recycling Units . | . . . . . . . . . . . . Scanalyzers . | . . . . . . . . . . . . Garrison Access . | . . . . . . . . . . . . Terminal Hacks 1 | . . . . 1 . . . . . . . Open DSF 1 | . . . . 1 . . . . . . . Fabricator Hacks . | . . . . . . . . . . . . Repair Station Hacks . | . . . . . . . . . . . . Recycling Unit Hacks . | . . . . . . . . . . . . Scanalyzer . | . . . . . . . . . . . . Garrison Access Hacks . | . . . . . . . . . . . . Unauthorized Hacks . | . . . . . . . . . . . . Terminals . | . . . . . . . . . . . . Fabricators . | . . . . . . . . . . . . Repair Stations . | . . . . . . . . . . . . Recycling Units . | . . . . . . . . . . . . Scanalyzers . | . . . . . . . . . . . . Garrison Access . | . . . . . . . . . . . . Data Cores Recovered 1 | . . . . . . 1 . . . . . Used . | . . . . . . . . . . . . Hacking Detections 2 | . . . . 1 . . . . . 1 . Full Trace Events 1 | . . . . . . . . . . 1 . Feedback Events . | . . . . . . . . . . . . Feedback Blocked . | . . . . . . . . . . . . Robot Schematics Acquired . | . . . . . . . . . . . . Robots Built . | . . . . . . . . . . . . Authchips . | . . . . . . . . . . . . Time . | . . . . . . . . . . . . Total Robot Build Rating . | . . . . . . . . . . . . Part Schematics Acquired . | . . . . . . . . . . . . Parts Built . | . . . . . . . . . . . . Authchips . | . . . . . . . . . . . . Time . | . . . . . . . . . . . . Total Part Build Rating . | . . . . . . . . . . . . Part Studies Acquired . | . . . . . . . . . . . . Parts Repaired . | . . . . . . . . . . . . Time . | . . . . . . . . . . . . Parts Recycled . | . . . . . . . . . . . . Recycled Matter . | . . . . . . . . . . . . Retrieved Matter . | . . . . . . . . . . . . Retrieved Components . | . . . . . . . . . . . . Parts Scanalyzed . | . . . . . . . . . . . . Part Schematics Acquired . | . . . . . . . . . . . . Parts Damaged . | . . . . . . . . . . . . Bothacking | -11 -10 -9 -8 -7 -7 -6 -6 -6 -5 -4 -3 ------------ Run | Yrd Mat Mat Mat Fac DSF Fac Low Low Fac Fac Res Used RIF Installer . | . . . . . . . . . . . . Robots Hacked . | . . . . . . . . . . . . Non-combat . | . . . . . . . . . . . . Combat . | . . . . . . . . . . . . Robot Hacks Applied . | . . . . . . . . . . . . Relay Couplers Released . | . . . . . . . . . . . . Fabnet Peak Effective % . | . . . . . . . . . . . . Robots Rewired . | . . . . . . . . . . . . Allies Hacked . | . . . . . . . . . . . . Hacks Repelled . | . . . . . . . . . . . . Allies | -11 -10 -9 -8 -7 -7 -6 -6 -6 -5 -4 -3 -------- Run | Yrd Mat Mat Mat Fac DSF Fac Low Low Fac Fac Res Total Allies . | . . . . . . . . . . . . Largest Group . | . . . . . . . . . . . . Highest-Rated Group . | . . . . . . . . . . . . Highest-Rated Ally . | . . . . . . . . . . . . Total Orders . | . . . . . . . . . . . . Ally Attacks . | . . . . . . . . . . . . Total Damage . | . . . . . . . . . . . . Kills . | . . . . . . . . . . . . Allies Corrupted . | . . . . . . . . . . . . Allies Melted . | . . . . . . . . . . . . Intel | -11 -10 -9 -8 -7 -7 -6 -6 -6 -5 -4 -3 ------- Run | Yrd Mat Mat Mat Fac DSF Fac Low Low Fac Fac Res Active Infowar (turns) 510 | . . . 51 . . . . . 4 231 224 Sensors 459 | . . . . . . . . . 4 231 224 Terrain 51 | . . . 51 . . . . . . . . Robot Analysis Total . | . . . . . . . . . . . . Derelict Logs Recovered 1 | . . . . . . . 1 . . . . Drone Launches . | . . . . . . . . . . . . Drone Recoveries . | . . . . . . . . . . . . Exploration | -11 -10 -9 -8 -7 -7 -6 -6 -6 -5 -4 -3 ------------- Run | Yrd Mat Mat Mat Fac DSF Fac Low Low Fac Fac Res Turns Passed 2182 | 43 49 334 317 59 104 141 281 25 146 339 344 Spaces Moved 2451 | 43 54 315 265 86 120 191 402 26 155 560 234 Core 951 | 4 . 5 9 9 5 . 156 26 95 464 178 Treads . | . . . . . . . . . . . . Legs . | . . . . . . . . . . . . Wheels 258 | 39 54 165 . . . . . . . . . Hover 131 | . . . . 77 54 . . . . . . Flight 1111 | . . 145 256 . 61 191 246 . 60 96 56 Fastest Speed 28 | 50 80 37 34 50 28 31 31 100 29 32 40 Average Speed 51 | 77 80 61 37 58 46 33 51 100 67 49 51 Slowest Speed 200 | 80 80 150 112 60 60 37 100 100 150 200 200 Overloaded Moves . | . . . . . . . . . . . . Propulsion Burnouts . | . . . . . . . . . . . . Robots Hopped 10 | . . 8 1 . . . . . 1 . . Potential Cave-ins . | . . . . . . . . . . . . Cave-ins Triggered . | . . . . . . . . . . . . Exploration Rate (%) 22 | 3 11 45 24 3 77 6 59 8 5 23 7 Regions Visited 11 Branch Regions 2 Pre-discovered Areas . | . . . . . . . . . . . . Known Exits Taken 3 | . . . . 1 . . . . 1 1 . Unknown Exits Taken 7 | 1 1 1 1 . . 1 1 1 . . . Scrap Searched . | . . . . . . . . . . . . Spaces Dug . | . . . . . . . . . . . . Terrain Destroyed 7 | . . . . . . . . . 1 4 2 Melee . | . . . . . . . . . . . . Projectile 7 | . . . . . . . . . 1 4 2 AOE . | . . . . . . . . . . . . Terrain Rammed . | . . . . . . . . . . . . Walls Destroyed . | . . . . . . . . . . . . Machines Disabled . | . . . . . . . . . . . . Actions | -11 -10 -9 -8 -7 -7 -6 -6 -6 -5 -4 -3 --------- Run | Yrd Mat Mat Mat Fac DSF Fac Low Low Fac Fac Res Total 3172 | 50 61 394 422 92 163 260 470 25 185 604 446 Wait 446 | . . 32 94 . 19 66 32 . . 19 184 Move 2422 | 42 53 300 262 85 119 190 401 25 152 559 234 Hop 8 | . . 6 1 . . . . . 1 . . Pick Up 20 | 3 4 4 1 2 . . 5 . . 1 . Fast Attach 39 | 4 . 6 6 3 7 . . . 7 3 3 Attach 23 | 1 . 2 6 1 . . 2 . 1 5 5 Detach 24 | . . 4 4 . . . 1 . 4 6 5 Swap 2 | . . . 2 . . . . . . . . Drop 20 | . 4 . 4 1 1 . 9 . . . 1 Fire 71 | . . 39 11 . . . . . 7 8 6 Melee 50 | . . . 31 . 1 4 7 . . 3 4 Ram 18 | . . 1 . . . . . . 13 . 4 Kick . | . . . . . . . . . . . . Crush . | . . . . . . . . . . . . Escape Stasis 13 | . . . . . 13 . . . . . . Rewire 3 | . . . . . 3 . . . . . . Trap 13 | . . . . . . . 13 . . . . Miscellaneous . | . . . . . . . . . . . . Route ------- -11/Scrapyard -10/Materials -9/Materials -8/Materials -7/Factory -7/DSF -6/Factory -6/Lower Caves -6/Lower Caves -5/Factory -4/Factory (discovered 2 exits: *Res / [*Arm]) -3/Research History --------- Turn | Location | Event 19 | -11/Scrapyard | Discovered new exit (range 16) 44 | -11/Scrapyard | Entered Materials 83 | -10/Materials | Discovered new exit (range 13) 93 | -10/Materials | Entered another Materials area 93 | -9/Materials | Evolved 2 slots: Propulsion x2 313 | -9/Materials | Build established: Mutant 350 | -9/Materials | Lost 5 parts (1p2n2w) 377 | -9/Materials | Core integrity fell below 50% 425 | -9/Materials | Discovered new exit (range 3) 427 | -9/Materials | Entered another Materials area 427 | -8/Materials | Evolved 2 slots: Propulsion x2 618 | -8/Materials | System corruption reached 10% 698 | -8/Materials | Discovered new exit (range 11) 729 | -8/Materials | Core integrity fell below 50% 739 | -8/Materials | Core integrity fell below 20% 744 | -8/Materials | Entered Factory 744 | -7/Factory | Evolved 2 slots: Power x1, Utility x1 770 | -7/Factory | Lost 6 parts (1p3n1u1w) 803 | -7/Factory | Identified exit to DSF 803 | -7/Factory | Entered DSF 863 | -7/DSF | Additional patrols routed to DSF 885 | -7/DSF | Discovered new exit (range 15) 898 | -7/DSF | Lost 3 parts (1p2n) 907 | -7/DSF | Entered Factory 907 | -6/Factory | Evolved 2 slots: Propulsion x2 1042 | -6/Factory | Discovered new exit (range 16) 1048 | -6/Factory | Entered Lower Caves 1138 | -6/Lower Caves | Spotted B-75 Beast 1220 | -6/Lower Caves | Destroyed B-75 Beast 1228 | -6/Lower Caves | Lost 3 parts (2n1w) 1316 | -6/Lower Caves | Discovered new exit (range 14) 1329 | -6/Lower Caves | Entered another Lower Caves area 1347 | -6/Lower Caves | Discovered new exit (range 7) 1354 | -6/Lower Caves | Entered Factory 1354 | -5/Factory | Evolved 2 slots: Propulsion x2 1414 | -5/Factory | Spotted B-75 Beast 1465 | -5/Factory | Core integrity fell below 50% 1489 | -5/Factory | Discovered new exit (range 9) 1499 | -5/Factory | Identified exit to Factory 1500 | -5/Factory | Entered another Factory area 1500 | -4/Factory | Evolved 2 slots: Propulsion x2 1592 | -4/Factory | Lost 4 parts (1p2n1w) 1639 | -4/Factory | Discovered new exit (range 11) 1726 | -4/Factory | Core integrity fell below 50% 1751 | -4/Factory | Spotted B-86 Titan 1790 | -4/Factory | Core integrity fell below 20% 1835 | -4/Factory | Discovered new exit (range 7) 1838 | -4/Factory | Identified exit to Research 1839 | -4/Factory | Entered Research 1839 | -3/Research | Evolved 2 slots: Propulsion x2 2116 | -3/Research | Core integrity fell below 50% 2122 | -3/Research | System corruption reached 10% 2159 | -3/Research | Spotted B-86 Titan 2170 | -3/Research | Core integrity fell below 20% 2183 | -3/Research | Destroyed by Y-72 Warden with Railgun Last Messages --------------- 02132_ P-80 Master destroyed. 02136_ S-43 Plague destroyed. 02140_ Acquired Imp. Antigrav System. 02141_ System corrupted: Heat flow error (+134). 02144_ Acquired Xenon Bombardment Thruster. 02145_ Dropped Imp. Antigrav System. 02147_ Acquired 4 matter. 02147_ Acquired 33 matter. 02147_ Acquired 61 matter. 02149_ Acquired 9 matter. 02159_ Slug penetrates Wall. 02162_ System corrupted: Matter fused (-6). 02162_ Slug penetrates Wall. 02169_ Xenon Bombardment Thruster destroyed. 02169_ Penetrated by Slug. 02178_ Meson Extractor disabled. 02178_ Slug penetrates Meson Extractor. 02179_ K%WP/YGHJG#3AKP: %UU/1YL 02182_ Knocked back. 02182_ Penetrated by Slug. Map ----- +----------------------------------------------------+ | | | | | | | ????????????????????????????????????????########## | | ????????????????????????????????????????# | | ????????????????????????????????????##### | | ????????????????????????????????????# "" | | ????????????????????????????????????#""" """ " | | ?????????????????????????????????????"" """ " | | ?????????????????????????????????????""F" """ " | | ?????????????????????????????????????"""" | | ????????????????????????????????????? """ | | ??????????????????????????????????????### | | ????????????????????????????????????##??# % | | ???????????????????????????????#####"#######"###+# | | ???????????????????????????????# | | ???????????????????????????????# | | ???????????????????????????????# | | ???????????????????????????????# """ """ | | ???????????????????????????????# "" """ | | ???????????????#???????????????# " " """ | | ???????????????# ??????######## | | ???????????????# "????# | | ???????????????# ??# * | | ???????????????# ! # % | | ???????????????# [/ /@ ^ | | ???????????????# // # #############" | | ??????????????#Y ??# #??????????? | | ??????????????## ????# #??????????? | | ???????????????# ??????# #????????????# | | ???????????????#????????# #????????????# | | ????????????????????????# #????????????? ? | | ????????????????????????# +????????????? ??? | | ????????????????????????# #??????????????#????? | | ????????????????????????# #???????????????????? | | ????????????????????????# #???????????????????? | | ????????????????????????# R #???????????????????? | | ????????????????????????# #???????????????????? | | ?????????????????????????k #???????????????????? | | ????????????????????????? +???????????????????? | | ????????????????????????? ?????????????????????? | | ?????????????????????????????????????????????????? | | ?????????????????????????????????????????????????? | | ?????????????????????????????????????????????????? | | ?????????????????????????????????????????????????? | | ?????????????????????????????????????????????????? | | ?????????????????????????????????????????????????? | | ?????????????????????????????????????????????????? | | ?????????????????????????????????????????????????? | | ?????????????????????????????????????????????????? | +----------------------------------------------------+ Best States ------------- Heat Dissipation 50 Energy Generation 14 Energy Capacity 700 Matter Stores 300 Matter Capacity 300 Sight Range 16 Robot Scan Range 16 Terrain Scan Range 16 Terrain Scan Density 10 Additional Mass Support 6 Power Shielding 33 Evasion (%) 63 Item Schematics ----------------- None Robot Schematics ------------------ None Fabricated ------------ Nothing Repaired ---------- Nothing Studied --------- None Alien Tech Used ----------------- None Achievements -------------- DIY Cooler Challenges ------------ None Game ------ Seed ClaymoresDeepMegashotty Manual? 0 Play Time 00:25:58 Cumulative 48.8 hours Start 2025.12.12 @ 18:24:53 End 2025.12.12 @ 18:48:09 Sessions 1 Manual Loads 0 Difficulty Rogue Special Mode None Game No. 188 Rogue 188 Adventurer 0 Explorer 0 Win Type - Total 0 Types 0/0/0/0/0/0/0/0/0/0 Lore% 12 Gallery% 36 Achievement% 24 Wizard Run 0 Options --------- Layout 1 ASCII 0 Keyboard 1 Movement Vi Keybinds 0 Fullscreen 1 Font 16/SmallcapsGlow Map View 55x38 Zoom Use 0% Tactical HUD 1 Map Filters NONE Filters NONE Steam X RUN: 70f63051-7904-4f91-84ca-23087029f100